bitfinex/quotes_SOLUSD_20241226
["timestamp","ask_amount","ask_price","bid_price","bid_amount"]
[1735214091768,10.57067677,190.12,190.04,12.16507677]
[1735214092082,10.57067677,190.12,190.05,23.902374]
[1735214093867,10.57067677,190.11,190.05,23.776884]
[1735214094090,10.57067677,190.1,190.05,23.776884]
[1735214094370,10.57067677,190.1,190.04,1.5944]
[1735214094977,10.57067677,190.1,190.05,23.776884]
[1735214096255,10.57067677,190.12,190.05,23.776884]
[1735214096552,10.57067677,190.11,190.05,23.776884]
[1735214098950,10.57067677,190.12,190.05,23.776884]
[1735214099458,10.57067677,190.11,190.05,23.776884]
[1735214099661,10.57067677,190.12,190.05,34.34756077]
[1735214099858,21.25689375,190.16,190.05,34.34756077]
[1735214100078,10.57067677,190.15,190.09,23.776884]
[1735214101157,10.57067677,190.14,190.07,10.57067677]
[1735214101357,10.57067677,190.14,190.06,34.47305077]
[1735214105594,10.57067677,190.13,190.06,34.47305077]
[1735214107792,21.25689375,190.16,190.07,10.57067677]
[1735214107983,10.57067677,190.15,190.07,10.57067677]
[1735214108293,21.25689375,190.16,190.07,10.57067677]
[1735214108489,31.82757052,190.16,190.09,23.776884]
[1735214109293,21.25689375,190.16,190.09,23.776884]
[1735214109503,10.57067677,190.15,190.09,23.776884]
[1735214109671,21.25689375,190.16,190.09,23.776884]
[1735214109873,10.57067677,190.15,190.09,23.776884]
[1735214111988,10.57067677,190.12,190.04,12.16507677]
[1735214112295,21.25689375,190.16,190.04,1.5944]
[1735214112496,10.57067677,190.15,190.07,10.57067677]
[1735214112666,10.57067677,190.15,190.08,34.34756077]
[1735214113201,10.57067677,190.15,190.08,23.776884]
[1735214114594,10.57067677,190.14,190.08,23.776884]
[1735214115095,10.57067677,190.13,190.07,0.12549]
[1735214116091,10.57067677,190.13,190.05,34.34756077]
[1735214116394,10.57067677,190.11,190.04,12.16507677]
[1735214116796,10.57067677,190.11,190.05,23.776884]
[1735214138631,10.57067677,190.1,190.05,23.776884]
[1735214139120,22.33883903,190.13,190.05,23.776884]
[1735214139329,10.57067677,190.11,190.05,23.776884]
[1735214141126,10.57067677,190.1,190.05,23.776884]
[1735214141296,10.57067677,190.11,190.05,23.776884]
[1735214150351,10.57067677,190.11,190.04,1.5944]
[1735214150530,22.33883903,190.13,190.02,22.15387262]
[1735214150531,10.57067677,190.07,190.02,8.20871429]
[1735214151573,10.57067677,190.07,190.01,16.41742859]
[1735214151574,10.57067677,190.07,190.0,18.77939106]
[1735214151856,10.57067677,190.07,190.01,23.902374]
[1735214155854,10.57067677,190.07,190.01,23.776884]
[1735214156162,10.57067677,190.05,190.01,23.776884]
[1735214156475,10.57067677,190.06,190.01,23.776884]
[1735214156961,10.57067677,190.06,190.0,23.902374]
[1735214157866,10.57067677,190.07,190.0,34.47305077]
[1735214158173,20.0,190.1,190.0,34.47305077]
[1735214158343,22.33883903,190.13,190.03,23.776884]
[1735214158659,10.57067677,190.1,190.04,23.776884]
[1735214161584,10.57067677,190.1,190.05,23.776884]
[1735214162272,10.57067677,190.1,190.03,34.47305077]
[1735214163982,10.57067677,190.1,190.03,42.68176506]
[1735214164470,10.57067677,190.09,190.03,32.11108829]
[1735214164876,10.57067677,190.09,190.03,23.902374]
[1735214165463,10.57067677,190.08,190.02,8.99792227]
[1735214165667,10.57067677,190.08,190.02,8.20871429]
[1735214167986,10.57067677,190.09,190.02,8.20871429]
[1735214168284,22.33883903,190.13,190.02,8.20871429]
[1735214168459,10.57067677,190.08,190.02,8.20871429]
[1735214168659,10.57067677,190.07,190.02,8.20871429]
[1735214169070,10.57067677,190.04,190.02,8.20871429]
[1735214169485,10.57067677,190.04,190.01,8.20871429]
[1735214169962,7.8419,190.07,190.01,8.20871429]
[1735214170263,10.57067677,190.06,189.99,23.776884]
[1735214172984,10.57067677,190.06,189.99,34.34756077]
[1735214173586,10.57067677,190.06,189.99,23.776884]
[1735214174169,10.57067677,190.03,189.98,8.20871429]
[1735214174788,10.57067677,190.03,189.97,8.20871429]
[1735214177512,10.57067677,190.06,189.99,10.57067677]
[1735214179053,7.8419,190.07,189.99,10.57067677]
[1735214179316,10.57067677,190.06,189.98,34.34756077]
[1735214179816,7.8419,190.07,189.98,34.34756077]
[1735214180115,10.57067677,190.06,189.98,34.34756077]
[1735214180419,10.57067677,190.06,189.99,10.57067677]
[1735214181808,7.8419,190.07,189.99,10.57067677]
[1735214182117,10.57067677,190.05,189.98,34.34756077]
[1735214182706,10.57067677,190.04,189.98,23.776884]
[1735214191699,10.57067677,190.03,189.97,8.20871429]
[1735214191902,10.57067677,190.01,189.97,8.20871429]
[1735214192621,10.57067677,190.01,189.95,23.776884]
[1735214194546,10.57067677,190.01,189.93,9.78871429]
[1735214194833,10.57067677,190.01,189.94,23.776884]
[1735214195144,10.57067677,190.02,189.94,34.34756077]
[1735214196244,10.57067677,190.02,189.95,10.57067677]
[1735214197129,20.9949,190.07,189.92,8.20871429]
[1735214197130,10.57067677,189.98,189.92,8.20871429]
[1735214197626,10.57067677,190.0,189.92,18.77939106]
[1735214198449,10.57067677,189.99,189.92,8.20871429]
[1735214198651,10.57067677,189.98,189.92,8.20871429]
[1735214198842,10.57067677,189.98,189.9,18.77939106]
[1735214199150,10.57067677,189.97,189.9,8.20871429]
[1735214199645,10.57067677,189.97,189.89,10.57067677]
[1735214199816,10.57067677,189.96,189.89,10.57067677]
[1735214200214,10.57067677,189.96,189.89,23.776884]
[1735214200853,10.57067677,189.95,189.89,23.776884]
[1735214201431,10.57067677,189.94,189.88,1.539]
[1735214201837,10.57067677,189.93,189.87,8.20871429]
[1735214202533,10.57067677,189.92,189.87,8.20871429]
[1735214202851,10.57067677,189.92,189.85,10.57067677]
[1735214204361,10.57067677,189.93,189.86,34.34756077]
[1735214204534,34.97014186,189.94,189.86,34.34756077]
[1735214205136,10.57067677,189.93,189.86,34.34756077]
[1735214205341,10.57067677,189.93,189.86,10.57067677]
[1735214205642,10.57067677,189.92,189.85,10.57067677]
[1735214205839,10.57067677,189.92,189.84,10.57067677]
[1735214206044,10.57067677,189.92,189.84,34.34756077]
[1735214206432,10.57067677,189.91,189.84,34.34756077]
[1735214206859,10.57067677,189.91,189.84,23.776884]
[1735214207527,10.57067677,189.92,189.84,34.34756077]
[1735214208128,10.57067677,189.92,189.85,10.57067677]
[1735214208328,10.57067677,189.92,189.84,34.34756077]
[1735214208960,10.57067677,189.91,189.84,23.776884]
[1735214209558,10.57067677,189.91,189.83,12.12067677]
[1735214210555,10.57067677,189.91,189.84,10.57067677]
[1735214210756,30.86316509,189.94,189.84,34.34756077]
[1735214211055,10.57067677,189.92,189.85,10.57067677]
[1735214212055,30.86316509,189.94,189.85,10.57067677]
[1735214212355,10.57067677,189.93,189.86,10.57067677]
[1735214212894,24.39946509,189.94,189.88,34.34756077]
[1735214213156,24.39946509,189.94,189.9,34.34756077]
[1735214214743,24.39946509,189.94,189.9,23.776884]
[1735214215635,34.97014186,189.94,189.89,1.5121]
[1735214215966,24.39946509,189.94,189.89,1.5121]
[1735214216859,24.39946509,189.94,189.89,0.5121]
[1735214220951,24.39946509,189.94,189.9,23.776884]
[1735214221259,24.39946509,189.94,189.91,10.57067677]
[1735214221443,24.39946509,189.94,189.93,10.57067677]
[1735214221648,24.39946509,189.94,189.92,10.57067677]
[1735214222562,24.39946509,189.94,189.92,23.776884]
[1735214224248,24.39946509,189.94,189.9,23.776884]
[1735214227045,24.39946509,189.94,189.89,11.08277677]
[1735214227247,24.39946509,189.94,189.89,0.5121]
[1735214229667,10.57067677,189.95,189.89,0.5121]
[1735214229965,17.19687677,189.95,189.87,23.776884]
[1735214230156,17.19687677,189.95,189.87,34.34756077]
[1735214231158,17.19687677,189.95,189.86,0.78967316]
[1735214231364,10.57067677,189.92,189.85,10.57067677]
[1735214232172,10.57067677,189.92,189.86,23.776884]
[1735214232348,10.57067677,189.93,189.86,23.776884]
[1735214234275,10.57067677,189.94,189.87,10.57067677]
[1735214235682,10.57067677,189.94,189.86,10.57067677]
[1735214237948,31.11905574,189.95,189.88,23.776884]
[1735214238279,41.68973251,189.95,189.88,34.34756077]
[1735214244163,31.11905574,189.95,189.88,34.34756077]
[1735214244592,41.68973251,189.95,189.88,34.34756077]
[1735214246885,31.11905574,189.95,189.88,34.34756077]
[1735214247895,24.49285574,189.95,189.9,34.34756077]
[1735214248392,24.49285574,189.95,189.91,10.57067677]
[1735214248565,24.49285574,189.95,189.92,10.57067677]
[1735214250082,24.49285574,189.95,189.92,23.776884]
[1735214250588,24.49285574,189.95,189.9,34.34756077]
[1735214250977,24.49285574,189.95,189.92,23.776884]
[1735214254099,24.49285574,189.95,189.9,34.34756077]
[1735214255796,35.06353251,189.95,189.88,8.23021952]
[1735214256168,35.06353251,189.95,189.88,23.776884]
[1735214256599,35.06353251,189.95,189.87,18.80089629]
[1735214256907,35.06353251,189.95,189.88,23.776884]
[1735214257397,35.06353251,189.95,189.87,10.57067677]
[1735214257766,35.06353251,189.95,189.88,10.57067677]
[1735214257968,24.49285574,189.95,189.87,24.56668291]
[1735214258172,24.49285574,189.95,189.91,23.776884]
[1735214258976,24.49285574,189.95,189.89,0.78967904]
[1735214258977,24.49285574,189.95,189.89,23.776884]
[1735214259495,24.49285574,189.95,189.86,9.01994773]
[1735214259698,24.49285574,189.95,189.87,10.57067677]
[1735214259875,24.49285574,189.95,189.87,34.34756077]
[1735214260196,10.57067677,189.94,189.87,34.34756077]
[1735214262089,9.57067677,189.94,189.87,34.34756077]
[1735214264497,24.49285574,189.95,189.88,23.776884]
[1735214264802,24.49285574,189.95,189.91,10.57067677]
[1735214265797,24.49285574,189.95,189.91,34.34756077]
[1735214269507,24.49285574,189.95,189.91,20.0]
[1735214269681,24.49285574,189.95,189.89,10.57067677]
[1735214270089,24.49285574,189.95,189.9,23.776884]
[1735214271182,24.49285574,189.95,189.9,10.57067677]
[1735214271382,24.49285574,189.95,189.9,11.36030745]
[1735214274608,24.49285574,189.95,189.89,8.23021952]
[1735214274906,24.49285574,189.95,189.88,18.80089629]
[1735214275507,24.49285574,189.95,189.88,42.57778029]
[1735214276001,24.49285574,189.95,189.88,34.34756077]
[1735214276207,24.49285574,189.95,189.91,10.57067677]
[1735214279821,24.49285574,189.95,189.89,23.776884]
[1735214279822,26.10955574,189.95,189.89,23.776884]
[1735214280010,26.10955574,189.95,189.89,34.34756077]
[1735214284315,24.49285574,189.95,189.92,23.776884]
[1735214284512,24.49285574,189.95,189.9,13.95449963]
[1735214284513,24.49285574,189.95,189.94,23.776884]
[1735214284689,8.0117,190.0,189.94,34.34756077]
[1735214284894,8.0117,190.0,189.97,23.776884]
[1735214285123,6.4315,190.0,189.97,34.34756077]
[1735214285308,12.15087677,190.04,189.97,34.34756077]
[1735214286422,1.5802,190.04,189.97,34.34756077]
[1735214286594,12.15087677,190.04,189.97,34.34756077]
[1735214290229,10.57067677,190.03,189.96,34.34756077]
[1735214291012,10.57067677,190.01,189.92,8.23021952]
[1735214291212,10.57067677,190.01,189.94,10.57067677]
[1735214291524,10.57067677,190.0,189.92,21.39341952]
[1735214291708,10.57067677,190.0,189.93,10.57067677]
[1735214292225,10.57067677,189.99,189.93,23.776884]
[1735214292532,10.57067677,189.97,189.9,8.23021952]
[1735214293122,10.57067677,189.96,189.9,8.23021952]
[1735214293328,10.57067677,189.96,189.89,10.57067677]
[1735214295443,10.57067677,189.97,189.89,10.57067677]
[1735214295924,6.4394,189.98,189.91,10.57067677]
[1735214296127,6.4394,189.98,189.92,10.57067677]
[1735214296433,6.4394,189.98,189.93,23.776884]
[1735214296635,6.4394,189.98,189.93,34.34756077]
[1735214297407,6.4394,189.98,189.92,10.57067677]
[1735214297707,6.4394,189.98,189.91,23.73477677]
[1735214298132,6.4394,189.98,189.92,23.776884]
[1735214302639,6.4394,189.98,189.92,10.57067677]
[1735214303228,10.57067677,190.02,189.95,10.57067677]
[1735214303614,17.13967677,190.03,189.95,10.57067677]
[1735214306440,17.13967677,190.03,189.96,10.57067677]
[1735214306831,17.13967677,190.03,189.93,24.56638857]
[1735214306832,6.569,190.03,189.98,10.57067677]
[1735214307161,8.1853,190.1,190.02,10.57067677]
[1735214307335,8.1853,190.1,190.05,10.57067677]
[1735214308342,8.1853,190.1,190.04,10.57067677]
[1735214308850,8.1853,190.1,190.04,23.776884]
[1735214309375,8.1853,190.1,190.01,23.776884]
[1735214309530,8.1853,190.1,190.04,23.776884]
[1735214311963,18.75597677,190.1,190.04,23.776884]
[1735214315771,8.1853,190.1,190.04,23.776884]
[1735214316667,10.57067677,190.05,189.98,10.57067677]
[1735214317258,10.57067677,190.05,189.97,13.1599]
[1735214317472,10.57067677,190.05,189.98,34.34756077]
[1735214317769,10.57067677,190.04,189.96,11.35983703]
[1735214318570,10.57067677,190.04,189.97,23.776884]
[1735214319478,10.57067677,190.05,189.97,34.34756077]
[1735214320574,10.57067677,190.05,189.98,10.57067677]
[1735214323781,23.75707924,190.07,189.98,10.57067677]
[1735214324074,10.57067677,190.05,189.98,10.57067677]
[1735214326475,10.57067677,190.04,189.94,13.1619]
[1735214326660,16.67927677,190.03,189.96,10.57067677]
[1735214330156,6.1086,190.03,189.97,10.57067677]
[1735214330351,6.1086,190.03,189.98,10.57067677]
[1735214330878,6.1086,190.03,189.99,10.57067677]
[1735214332190,6.1086,190.03,189.98,10.57067677]
[1735214336393,6.1086,190.03,189.96,23.776884]
[1735214336687,6.1086,190.03,189.95,24.56628746]
[1735214336688,6.1086,190.03,189.98,10.57067677]
[1735214338788,29.88287924,190.07,189.99,23.776884]
[1735214338994,29.88287924,190.07,190.01,10.57067677]
[1735214339162,10.57067677,190.04,189.98,23.776884]
[1735214339370,29.88287924,190.07,190.0,10.57067677]
[1735214339579,29.88287924,190.07,189.99,10.57067677]
[1735214339892,40.45355601,190.07,190.0,10.57067677]
[1735214340390,10.57067677,190.06,189.99,34.34756077]
[1735214340573,40.45355601,190.07,190.0,10.57067677]
[1735214340779,29.88287924,190.07,190.0,10.57067677]
[1735214340964,29.88287924,190.07,190.04,10.57067677]
[1735214341170,23.75707924,190.07,190.06,23.776884]
[1735214341966,23.75707924,190.07,190.04,23.776884]
[1735214342162,1.6163,190.1,190.04,23.776884]
[1735214342463,1.6163,190.1,190.04,34.34756077]
[1735214342900,10.57067677,190.08,190.01,13.1572]
[1735214343071,10.57067677,190.08,190.01,30.57067677]
[1735214343681,10.57067677,190.08,190.02,23.776884]
[1735214347207,12.18697677,190.1,190.03,34.34756077]
[1735214347508,1.6163,190.1,190.04,10.57067677]
[1735214347704,1.6163,190.1,190.05,10.57067677]
[1735214348318,1.6163,190.1,190.06,10.57067677]
[1735214349305,6.1258,190.12,190.07,34.34756077]
[1735214349521,6.1258,190.12,190.09,34.34756077]
[1735214349816,1.6116,190.14,190.1,10.57067677]
[1735214350189,1.6116,190.14,190.09,34.34756077]
[1735214351585,1.6116,190.14,190.09,23.776884]
[1735214352428,1.55251299,190.14,190.09,23.776884]
[1735214352718,1.55251299,190.14,190.07,23.776884]
[1735214352897,1.55251299,190.14,190.07,34.34756077]
[1735214353315,12.12318976,190.14,190.07,23.776884]
[1735214353523,10.57067677,190.13,190.05,23.72437677]
[1735214353724,10.57067677,190.13,190.06,35.13658737]
[1735214353897,1.55251299,190.14,190.07,10.57067677]
[1735214354233,12.12318976,190.14,190.07,10.57067677]
[1735214354598,12.12318976,190.14,190.06,35.13658737]
[1735214356335,12.12318976,190.14,190.07,10.57067677]
[1735214359528,12.12318976,190.14,190.06,35.13658737]
[1735214360021,12.12318976,190.14,190.07,10.57067677]
[1735214361430,12.12318976,190.14,190.06,24.5659106]
[1735214361629,12.12318976,190.14,190.07,10.57067677]
[1735214362094,12.12318976,190.14,190.06,24.5659106]
[1735214362419,12.12318976,190.14,190.02,3.74274281]
[1735214362420,17.20497677,190.1,190.02,23.72707677]
[1735214363425,17.20497677,190.1,190.03,23.776884]
[1735214364020,17.20497677,190.1,190.03,34.34756077]
[1735214364922,17.20497677,190.1,190.03,23.776884]
[1735214365125,10.57067677,190.08,190.03,23.776884]
[1735214365329,10.57067677,190.08,190.01,23.776884]
[1735214365702,10.57067677,190.08,190.01,34.34756077]
[1735214365904,10.57067677,190.09,190.01,34.34756077]
[1735214366933,10.57067677,190.09,190.02,10.57067677]
[1735214369306,10.57067677,190.08,190.01,34.34756077]
[1735214370829,1.6586,190.07,190.01,34.34756077]
[1735214371028,10.57067677,190.06,189.99,10.57067677]
[1735214371529,10.57067677,190.06,189.98,10.57067677]
[1735214372703,17.08677677,190.05,189.97,0.78934298]
[1735214373032,17.08677677,190.05,189.97,10.57067677]
[1735214373398,17.08677677,190.05,189.98,10.57067677]
[1735214374546,6.5161,190.05,189.98,10.57067677]
[1735214374718,6.5161,190.05,189.99,10.57067677]
[1735214376910,6.5161,190.05,189.96,10.57067677]
[1735214376911,10.57067677,190.03,189.96,10.57067677]
[1735214377110,10.57067677,190.03,189.95,10.57067677]
[1735214377505,10.57067677,190.03,189.96,10.57067677]
[1735214377726,10.57067677,190.04,189.97,10.57067677]
[1735214379435,10.57067677,190.04,189.96,10.57067677]
[1735214380237,10.57067677,190.04,189.95,23.776884]
[1735214380529,10.57067677,190.03,189.96,10.57067677]
[1735214382652,10.57067677,190.03,189.95,23.776884]
[1735214382835,10.57067677,190.03,189.96,10.57067677]
[1735214383921,10.57067677,190.04,189.96,10.57067677]
[1735214384250,10.57067677,190.04,189.96,10.38246878]
[1735214388825,10.57067677,190.04,189.96,10.57067677]
[1735214390659,10.57067677,190.03,189.96,10.57067677]
[1735214394160,6.5161,190.05,189.96,10.57067677]
[1735214394359,10.57067677,190.04,189.96,10.57067677]
[1735214397864,6.5161,190.05,189.96,10.57067677]
[1735214398363,17.08677677,190.05,189.96,10.57067677]
[1735214400254,17.08677677,190.05,189.98,10.57067677]
[1735214400561,17.08677677,190.05,189.97,10.57067677]
[1735214401649,17.08677677,190.05,189.96,23.776884]
[1735214401952,6.5161,190.05,189.96,24.995591]
[1735214402162,17.08677677,190.05,189.96,24.995591]
[1735214402454,6.5161,190.05,189.97,23.776884]
[1735214402641,6.5161,190.05,189.98,10.57067677]
[1735214402843,1.6586,190.07,190.01,23.776884]
[1735214403050,6.4999,190.1,190.03,23.776884]
[1735214403443,6.4999,190.1,190.05,23.776884]
[1735214403830,1.5584,190.12,190.05,23.776884]
[1735214404037,1.5584,190.12,190.05,34.34756077]
[1735214404348,6.4999,190.15,190.05,34.34756077]
[1735214404554,6.4999,190.15,190.07,23.776884]
[1735214404758,10.57067677,190.13,190.07,23.776884]
[1735214404960,10.57067677,190.1,190.01,20.78903124]
[1735214405138,10.57067677,190.09,190.01,20.78903124]
[1735214405337,10.57067677,190.07,190.01,20.0]
[1735214405666,10.57067677,190.05,189.98,8.23021952]
[1735214405871,10.57067677,190.05,189.99,23.776884]
[1735214406169,10.57067677,190.03,189.96,1.218707]
[1735214406369,10.57067677,190.02,189.96,1.218707]
[1735214408271,6.4999,190.07,189.96,11.78938377]
[1735214408272,10.57067677,190.03,189.96,11.78938377]
[1735214408458,6.4999,190.07,189.99,10.57067677]
[1735214408645,6.4999,190.07,189.97,23.776884]
[1735214408646,17.07057677,190.07,190.0,10.57067677]
[1735214408851,10.57067677,190.06,189.99,10.57067677]
[1735214409049,10.57067677,190.04,189.96,1.218707]
[1735214409265,10.57067677,190.04,189.96,11.78938377]
[1735214410340,10.57067677,190.02,189.96,1.218707]
[1735214411160,6.4999,190.07,189.97,23.776884]
[1735214411355,17.07057677,190.07,189.99,10.57067677]
[1735214411676,6.4999,190.07,190.01,23.776884]
[1735214411870,6.4999,190.07,190.01,34.34756077]
[1735214412565,6.4999,190.07,190.02,10.57067677]
[1735214412772,1.5584,190.09,190.02,10.57067677]
[1735214413458,12.12907677,190.09,189.98,24.56607442]
[1735214413763,10.57067677,190.08,189.98,0.78919042]
[1735214413965,10.57067677,190.07,190.0,10.57067677]
[1735214414457,10.57067677,190.06,189.99,10.57067677]
[1735214414873,10.57067677,190.05,189.99,23.776884]
[1735214415058,10.57067677,190.06,189.99,23.776884]
[1735214415851,10.57067677,190.05,189.99,23.776884]
[1735214416451,10.57067677,190.05,189.98,23.776884]
[1735214416684,10.57067677,190.05,189.97,10.57067677]
[1735214416979,17.15517677,190.03,189.96,21.218707]
[1735214417184,10.57067677,190.01,189.96,1.218707]
[1735214417485,6.5845,190.03,189.97,10.57067677]
[1735214417683,10.57067677,190.02,189.96,1.218707]
[1735214418481,6.5845,190.03,189.96,11.78938377]
[1735214419715,17.15517677,190.03,189.96,11.78938377]
[1735214420001,10.57067677,190.02,189.96,1.218707]
[1735214421789,10.57067677,190.01,189.96,1.218707]
[1735214421994,10.57067677,190.0,189.96,1.218707]
[1735214422171,10.57067677,190.01,189.96,1.218707]
[1735214424898,6.5845,190.03,189.97,10.57067677]
[1735214425488,17.15517677,190.03,189.96,11.78938377]
[1735214427296,6.5845,190.03,189.97,10.57067677]
[1735214428400,17.15517677,190.03,189.96,1.218707]
[1735214428577,10.57067677,190.02,189.96,1.218707]
[1735214430401,17.15517677,190.03,189.96,1.218707]
[1735214430699,38.20668676,190.05,189.98,10.57067677]
[1735214431272,10.57067677,190.04,189.97,34.34756077]
[1735214431775,10.57067677,190.04,189.97,23.776884]
[1735214431983,10.57067677,190.04,189.97,34.34756077]
[1735214433196,27.63600999,190.05,190.0,10.57067677]
[1735214433502,27.63600999,190.05,190.02,10.57067677]
[1735214433868,27.63600999,190.05,190.03,23.776884]
[1735214434073,10.57067677,190.1,190.03,10.57067677]
[1735214434904,10.57067677,190.09,190.02,34.34756077]
[1735214435288,33.70954047,190.11,190.01,20.0]
[1735214435289,10.57067677,190.07,190.01,20.0]
[1735214435496,10.57067677,190.07,190.0,10.57067677]
[1735214437879,10.57067677,190.07,189.99,23.776884]
[1735214438081,10.57067677,190.07,190.0,10.57067677]
[1735214438820,10.57067677,190.05,189.98,12.16767677]
[1735214439314,10.57067677,190.05,189.98,10.57067677]
[1735214440513,10.57067677,190.04,189.97,30.57067677]
[1735214440923,10.57067677,190.04,189.98,23.776884]
[1735214441215,10.57067677,190.08,190.01,10.57067677]
[1735214442420,10.57067677,190.07,190.01,23.776884]
[1735214443315,10.57067677,190.06,189.99,10.57067677]
[1735214445418,10.57067677,190.04,189.97,30.57067677]
[1735214445719,10.57067677,190.05,189.97,30.57067677]
[1735214447704,10.57067677,190.05,189.97,10.57067677]
[1735214448319,10.57067677,190.04,189.97,10.57067677]
[1735214449921,10.57067677,190.03,189.97,23.776884]
[1735214451097,10.57067677,190.02,189.96,1.218707]
[1735214451296,10.57067677,190.01,189.96,1.218707]
[1735214452998,10.57067677,190.02,189.96,1.218707]
[1735214453200,6.4363,190.04,189.96,1.218707]
[1735214453402,10.57067677,190.02,189.96,1.218707]
[1735214461232,10.57067677,190.02,189.96,11.78938377]
[1735214462211,10.57067677,190.02,189.96,1.218707]
[1735214462731,10.57067677,190.01,189.96,1.218707]
[1735214463912,6.4363,190.04,189.96,1.218707]
[1735214464107,10.57067677,190.01,189.96,1.218707]
[1735214468639,10.57067677,190.0,189.96,1.218707]
[1735214468824,6.4363,190.04,189.96,1.218707]
[1735214468825,10.57067677,189.99,189.96,1.218707]
[1735214469025,10.57067677,189.98,189.96,1.218707]
[1735214469326,10.57067677,189.97,189.96,1.218707]
[1735214474725,10.69616677,189.97,189.96,1.218707]
[1735214474930,16.70936677,189.97,189.96,1.218707]
[1735214475136,6.0132,189.97,189.96,1.218707]
[1735214475332,10.57067677,189.97,189.96,1.218707]
[1735214476026,10.69616677,189.97,189.96,1.218707]
[1735214479352,16.75436677,189.97,189.96,1.218707]
[1735214479533,40.53125077,189.97,189.96,1.218707]
[1735214479736,10.57067677,189.88,189.81,16.88257677]
[1735214480639,10.57067677,189.88,189.82,23.776884]
[1735214481140,10.57067677,189.87,189.82,23.776884]
[1735214481453,10.57067677,189.88,189.82,23.776884]
[1735214481854,0.12549,189.92,189.82,23.776884]
[1735214482059,0.12549,189.92,189.82,34.34756077]
[1735214482359,10.57067677,189.89,189.82,34.34756077]
[1735214483932,0.10186778,189.83,189.81,6.3119]
[1735214484137,0.10186778,189.83,189.8,10.57067677]
[1735214484440,0.10186778,189.83,189.79,12.17437677]
[1735214487464,0.10186778,189.83,189.79,1.6037]
[1735214488631,10.57067677,189.82,189.73,2.39395735]
[1735214488834,10.57067677,189.81,189.74,10.57067677]
[1735214489253,10.57067677,189.81,189.73,1.6037]
[1735214489447,10.57067677,189.81,189.74,34.34756077]
[1735214489643,10.57067677,189.82,189.75,10.57067677]
[1735214490068,10.57067677,189.81,189.74,23.776884]
[1735214490361,10.57067677,189.81,189.73,1.6037]
[1735214490561,10.57067677,189.81,189.73,12.17437677]
[1735214495672,0.10186778,189.83,189.75,34.34756077]
[1735214495872,10.67254455,189.83,189.75,34.34756077]
[1735214496669,10.57067677,189.82,189.75,34.34756077]
[1735214497366,10.57067677,189.82,189.75,10.57067677]
[1735214497571,10.57067677,189.81,189.74,10.57067677]
[1735214497972,10.57067677,189.81,189.74,23.776884]
[1735214498271,10.57067677,189.8,189.73,1.6037]
[1735214500271,10.57067677,189.8,189.73,23.776884]
[1735214502768,10.57067677,189.78,189.69,20.0]
[1735214503074,10.57067677,189.79,189.72,10.57067677]
[1735214504169,0.11375636,189.73,189.72,34.34756077]
[1735214504764,0.10071575,189.74,189.72,34.34756077]
[1735214506657,0.10071575,189.74,189.72,23.776884]
[1735214508188,0.10071575,189.74,189.71,10.57067677]
[1735214508983,0.10071575,189.74,189.68,2.44125642]
[1735214509166,0.10071575,189.74,189.69,10.57067677]
[1735214510385,0.10071575,189.74,189.68,10.57067677]
[1735214511057,10.67139252,189.74,189.67,23.776884]
[1735214511272,10.67139252,189.74,189.67,10.57067677]
[1735214511974,0.10071575,189.74,189.67,10.57067677]
[1735214512284,0.10071575,189.74,189.64,13.1826]
[1735214512285,10.57067677,189.73,189.64,13.1826]
[1735214512469,10.57067677,189.73,189.66,10.57067677]
[1735214512668,10.57067677,189.71,189.63,0.79070079]
[1735214512853,1.5295,189.72,189.63,0.79070079]
[1735214512854,12.10017677,189.72,189.63,0.79070079]
[1735214513061,10.67139252,189.74,189.67,10.57067677]
[1735214513685,0.10071575,189.74,189.67,10.57067677]
[1735214513858,10.67139252,189.74,189.67,10.57067677]
[1735214514287,10.57067677,189.73,189.66,34.34756077]
[1735214515069,10.57067677,189.73,189.66,23.776884]
[1735214515387,10.57067677,189.73,189.66,34.34756077]
[1735214515584,0.10071575,189.74,189.66,34.34756077]
[1735214515886,0.10071575,189.74,189.67,10.57067677]
[1735214515887,10.67139252,189.74,189.67,10.57067677]
[1735214516487,10.67139252,189.74,189.64,13.1828]
[1735214516785,10.57067677,189.73,189.64,13.1828]
[1735214516991,10.57067677,189.73,189.65,10.57067677]
[1735214517487,10.57067677,189.72,189.65,10.57067677]
[1735214517984,10.57067677,189.72,189.64,20.0]
[1735214518196,10.57067677,189.71,189.65,23.776884]
[1735214518886,10.57067677,189.71,189.64,30.57067677]
[1735214519261,10.57067677,189.7,189.63,10.57067677]
[1735214520485,10.57067677,189.7,189.61,13.97578283]
[1735214520668,10.57067677,189.7,189.63,10.57067677]
[1735214521089,10.57067677,189.68,189.6,0.79088156]
[1735214521292,10.57067677,189.64,189.57,15.20657634]